fUSD/lending_fUSD_20260518
["ID","MTS","AMOUNT","RATE_DAILY","PERIOD"]
[422533023,1779040245000,-5000.0,0.00036151,10]
[422533010,1779040245000,-1000.0,0.0003613,30]
[422533012,1779040245000,-1000.0,0.00036131,120]
[422533014,1779040245000,-1000.0,0.00036131,2]
[422533025,1779040245000,-151.0,0.00036153,30]
[422533027,1779040245000,-186.0,0.00036156,30]
[422533040,1779040245000,-5000.0,0.00036196,10]
[422533044,1779040245000,-179.65,0.000362,7]
[422533029,1779040245000,-153.0,0.00036156,30]
[422533046,1779040245000,-5000.0,0.00036204,10]
[422533034,1779040245000,-10276.8416,0.00036168,2]
[422533031,1779040245000,-472.0,0.00036156,30]
[422533042,1779040245000,-185.20153465,0.00036199,2]
[422533048,1779040245000,-150.0,0.00036214,7]
[422533038,1779040245000,-150.0,0.00036184,7]
[422533050,1779040245000,-150.0,0.00036214,7]
[422533036,1779040245000,-150.0,0.00036184,7]
[422533053,1779040245000,-150.0,0.00036223,7]
[422533055,1779040245000,-2527.73,0.00036239,10]
[422533066,1779040245000,-2234.841,0.00036272,2]
[422533057,1779040245000,-25000.0,0.00036261,10]
[422533060,1779040245000,-267.935294,0.00036263,31]
[422532950,1779040245000,-152.0,0.0003613,30]
[422533070,1779040245000,-927.0,0.00036281,2]
[422533062,1779040245000,-2320.6612,0.00036272,2]
[422533064,1779040245000,-2140.6441,0.00036272,2]
[422533016,1779040245000,-340.84020795,0.00036132,2]
[422533020,1779040245000,-260.279999,0.0003615,31]
[422533068,1779040245000,-3543.0,0.00036281,2]
[422533008,1779040245000,-1000.0,0.0003613,10]
[422533005,1779040245000,-1000.0,0.0003613,7]
[422532948,1779040245000,-642.94,0.0003613,30]
[422532946,1779040245000,-152.0,0.0003613,30]
[422532957,1779040245000,-152.0,0.0003613,30]
[422532970,1779040245000,-151.0,0.0003613,30]
[422532959,1779040245000,-716.97946142,0.0003613,30]
[422532962,1779040245000,-152.0,0.0003613,30]
[422532966,1779040245000,-152.0,0.0003613,30]
[422532973,1779040245000,-151.0,0.0003613,30]
[422532964,1779040245000,-152.0,0.0003613,30]
[422532971,1779040245000,-151.0,0.0003613,30]
[422532974,1779040245000,-1000.0,0.0003613,30]
[422532972,1779040245000,-151.0,0.0003613,30]
[422532975,1779040245000,-151.0,0.0003613,30]
[422532953,1779040245000,-152.0,0.0003613,30]
[422532968,1779040245000,-152.0,0.0003613,30]
[422532977,1779040245000,-1000.0,0.0003613,30]
[422533003,1779040245000,-1000.0,0.0003613,30]
[422532989,1779040245000,-1000.0,0.0003613,30]
[422532985,1779040245000,-1000.0,0.0003613,30]
[422532987,1779040245000,-151.0,0.0003613,30]
[422532999,1779040245000,-1000.0,0.0003613,30]
[422532994,1779040245000,-1000.0,0.0003613,30]
[422532992,1779040245000,-237.71857448,0.0003613,30]
[422532983,1779040245000,-151.0,0.0003613,30]
[422533001,1779040245000,-1000.0,0.0003613,30]
[422532996,1779040245000,-1000.0,0.0003613,30]
[422532979,1779040245000,-151.0,0.0003613,30]
[422532981,1779040245000,-1000.0,0.0003613,30]
[422533141,1779040246000,-300.0,0.00036298,2]
[422533165,1779040246000,-464.05309097,0.00036298,2]
[422533144,1779040246000,-300.70672347,0.00036298,2]
[422533152,1779040246000,-1147.71030809,0.00036298,2]
[422533154,1779040246000,-309.72976467,0.00036298,2]
[422533158,1779040246000,-1756.09027805,0.00036298,2]
[422533193,1779040246000,-300.0,0.00036298,2]
[422533148,1779040246000,-949.41386656,0.00036298,2]
[422533156,1779040246000,-864.84573435,0.00036298,2]
[422533161,1779040246000,-311.04198967,0.00036298,2]
[422533150,1779040246000,-300.0,0.00036298,2]
[422533173,1779040246000,-300.0,0.00036298,2]
[422533178,1779040246000,-484.30212364,0.00036298,2]
[422533167,1779040246000,-577.47815809,0.00036298,2]
[422533180,1779040246000,-309.96996065,0.00036298,2]
[422533182,1779040246000,-300.0,0.00036298,2]
[422533171,1779040246000,-452.10208933,0.00036298,2]
[422533169,1779040246000,-376.61945263,0.00036298,2]
[422533186,1779040246000,-1095.24427681,0.00036298,2]
[422533184,1779040246000,-300.0,0.00036298,2]
[422533189,1779040246000,-300.0,0.00036298,2]
[422533176,1779040246000,-300.0,0.00036298,2]
[422533139,1779040246000,-418.15336802,0.00036298,2]
[422533163,1779040246000,-588.93738873,0.00036298,2]
[422533137,1779040246000,-301.92446648,0.00036298,2]
[422533089,1779040246000,-300.0,0.00036298,2]
[422533132,1779040246000,-893.8052833,0.00036298,2]
[422533074,1779040246000,-930.0,0.00036281,2]
[422533076,1779040246000,-417.0,0.00036281,2]
[422533079,1779040246000,-25000.0,0.00036281,10]
[422533072,1779040246000,-1270.0,0.00036281,2]
[422533081,1779040246000,-1147.71030809,0.00036298,2]
[422533092,1779040246000,-464.05309097,0.00036298,2]
[422533083,1779040246000,-309.72976467,0.00036298,2]
[422533084,1779040246000,-300.0,0.00036298,2]
[422533094,1779040246000,-577.47815809,0.00036298,2]
[422533087,1779040246000,-311.04198967,0.00036298,2]
[422533096,1779040246000,-452.10208933,0.00036298,2]
[422533085,1779040246000,-864.84573435,0.00036298,2]
[422533098,1779040246000,-300.0,0.00036298,2]
[422533100,1779040246000,-300.0,0.00036298,2]
[422533102,1779040246000,-484.30212364,0.00036298,2]
[422533104,1779040246000,-369.3927627,0.00036298,2]
[422533106,1779040246000,-300.0,0.00036298,2]
[422533120,1779040246000,-300.0,0.00036298,2]
[422533124,1779040246000,-604.73492277,0.00036298,2]
[422533126,1779040246000,-300.0,0.00036298,2]
[422533122,1779040246000,-300.0,0.00036298,2]
[422533128,1779040246000,-527.9795525,0.00036298,2]
[422533130,1779040246000,-1067.39759447,0.00036298,2]
[422533135,1779040246000,-726.3731759,0.00036298,2]
[422533201,1779040246000,-604.73492277,0.00036298,2]
[422533146,1779040246000,-300.0,0.00036298,2]
[422533203,1779040246000,-300.0,0.00036298,2]
[422533249,1779040246000,-311.04198967,0.00036298,2]
[422533255,1779040246000,-300.0,0.00036298,2]
[422533261,1779040246000,-452.10208933,0.00036298,2]
[422533263,1779040246000,-300.0,0.00036298,2]
[422533267,1779040246000,-300.0,0.00036298,2]
[422533265,1779040246000,-300.0,0.00036298,2]
[422533269,1779040246000,-300.0,0.00036298,2]
[422533272,1779040246000,-576.38018096,0.00036298,2]
[422533276,1779040246000,-309.96996065,0.00036298,2]
[422533274,1779040246000,-484.30212364,0.00036298,2]
[422533278,1779040246000,-300.0,0.00036298,2]
[422533280,1779040246000,-300.0,0.00036298,2]
[422533284,1779040246000,-300.0,0.00036298,2]
[422533282,1779040246000,-300.0,0.00036298,2]
[422533286,1779040246000,-300.0,0.00036298,2]
[422533287,1779040246000,-300.0,0.00036298,2]
[422533288,1779040246000,-1095.24427681,0.00036298,2]
[422533289,1779040246000,-300.0,0.00036298,2]
[422533290,1779040246000,-353.59451446,0.00036298,2]
[422533292,1779040246000,-304.02041244,0.00036298,2]
[422533291,1779040246000,-300.0,0.00036298,2]
[422533293,1779040246000,-300.0,0.00036298,2]
[422533191,1779040246000,-496.12427771,0.00036298,2]
[422533253,1779040246000,-464.05309097,0.00036298,2]
[422533259,1779040246000,-300.0,0.00036298,2]
[422533294,1779040246000,-300.0,0.00036298,2]
[422533247,1779040246000,-300.0,0.00036298,2]
[422533257,1779040246000,-577.47815809,0.00036298,2]
[422533209,1779040246000,-1067.39759447,0.00036298,2]
[422533205,1779040246000,-527.9795525,0.00036298,2]
[422533211,1779040246000,-726.3731759,0.00036298,2]
[422533214,1779040246000,-300.0,0.00036298,2]
[422533195,1779040246000,-300.0,0.00036298,2]
[422533197,1779040246000,-492.91797782,0.00036298,2]
[422533199,1779040246000,-300.0,0.00036298,2]
[422533216,1779040246000,-301.92446648,0.00036298,2]
[422533227,1779040246000,-949.41386656,0.00036298,2]
[422533229,1779040246000,-344.12979214,0.00036298,2]
[422533231,1779040246000,-527.12281632,0.00036298,2]
[422533207,1779040246000,-893.8052833,0.00036298,2]
[422533220,1779040246000,-300.70672347,0.00036298,2]
[422533218,1779040246000,-300.0,0.00036298,2]
[422533243,1779040246000,-300.0,0.00036298,2]
[422533239,1779040246000,-309.72976467,0.00036298,2]
[422533251,1779040246000,-300.0,0.00036298,2]
[422533241,1779040246000,-864.84573435,0.00036298,2]
[422533235,1779040246000,-300.0,0.00036298,2]
[422533225,1779040246000,-300.0,0.00036298,2]
[422533233,1779040246000,-460.44893399,0.00036298,2]
[422533222,1779040246000,-300.0,0.00036298,2]
[422533237,1779040246000,-1147.71030809,0.00036298,2]
[422533245,1779040246000,-1791.55036629,0.00036298,2]
[422533344,1779040247000,-376.0316063,0.00036298,2]
[422533338,1779040247000,-344.12979214,0.00036298,2]
[422533355,1779040247000,-1791.55036629,0.00036298,2]
[422533348,1779040247000,-309.72976467,0.00036298,2]
[422533350,1779040247000,-864.84573435,0.00036298,2]
[422533363,1779040247000,-311.04198967,0.00036298,2]
[422533352,1779040247000,-529.83738724,0.00036298,2]
[422533365,1779040247000,-300.0,0.00036298,2]
[422533366,1779040247000,-300.99518769,0.00036298,2]
[422533375,1779040247000,-452.10208933,0.00036298,2]
[422533357,1779040247000,-300.0,0.00036298,2]
[422533359,1779040247000,-300.0,0.00036298,2]
[422533370,1779040247000,-300.0,0.00036298,2]
[422533361,1779040247000,-300.0,0.00036298,2]
[422533373,1779040247000,-577.47815809,0.00036298,2]
[422533377,1779040247000,-300.0,0.00036298,2]
[422533379,1779040247000,-300.0,0.00036298,2]
[422533391,1779040247000,-300.0,0.00036298,2]
[422533337,1779040247000,-383.47707127,0.00036298,2]
[422533384,1779040247000,-484.30212364,0.00036298,2]
[422533368,1779040247000,-464.05309097,0.00036298,2]
[422533342,1779040247000,-369.76155591,0.00036298,2]
[422533312,1779040247000,-1067.39759447,0.00036298,2]
[422533346,1779040247000,-1147.71030809,0.00036298,2]
[422533397,1779040247000,-358.04676529,0.00036298,2]
[422533301,1779040247000,-379.96354823,0.00036298,2]
[422533303,1779040247000,-300.0,0.00036298,2]
[422533295,1779040247000,-300.0,0.00036298,2]
[422533296,1779040247000,-492.91797782,0.00036298,2]
[422533299,1779040247000,-334.51679478,0.00036298,2]
[422533297,1779040247000,-300.10975184,0.00036298,2]
[422533305,1779040247000,-300.0,0.00036298,2]
[422533316,1779040247000,-726.3731759,0.00036298,2]
[422533309,1779040247000,-300.0,0.00036298,2]
[422533322,1779040247000,-300.0,0.00036298,2]
[422533311,1779040247000,-527.9795525,0.00036298,2]
[422533315,1779040247000,-893.8052833,0.00036298,2]
[422533320,1779040247000,-301.92446648,0.00036298,2]
[422533318,1779040247000,-300.0,0.00036298,2]
[422533324,1779040247000,-300.70672347,0.00036298,2]
[422533327,1779040247000,-370.3759879,0.00036298,2]
[422533331,1779040247000,-949.41386656,0.00036298,2]
[422533335,1779040247000,-1913.25849317,0.00036298,2]
[422533333,1779040247000,-300.0,0.00036298,2]
[422533340,1779040247000,-527.12281632,0.00036298,2]
[422533329,1779040247000,-300.0,0.00036298,2]
[422533383,1779040247000,-300.0,0.00036298,2]
[422533307,1779040247000,-604.73492277,0.00036298,2]
[422533388,1779040247000,-369.3927627,0.00036298,2]
[422533437,1779040247000,-200.0,0.00036493,2]
[422533439,1779040247000,-5000.0,0.00036494,10]
[422533450,1779040247000,-150.0,0.00036576,7]
[422533452,1779040247000,-150.0,0.00036576,7]
[422533454,1779040247000,-5000.0,0.00036593,10]
[422533458,1779040247000,-5000.0,0.00036597,10]
[422533456,1779040247000,-150.0,0.00036593,7]
[422533462,1779040247000,-150.0,0.00036649,7]
[422533460,1779040247000,-2511.85,0.00036624,10]
[422533466,1779040247000,-5000.0,0.00036655,10]
[422533464,1779040247000,-150.0,0.00036649,7]
[422533488,1779040247000,-42776.02602046,0.00036798,2]
[422533468,1779040247000,-150.0,0.00036686,7]
[422533473,1779040247000,-2527.74,0.00036699,10]
[422533470,1779040247000,-165.55,0.0003669,30]
[422533475,1779040247000,-2140.6441,0.00036725,2]
[422533477,1779040247000,-150.0,0.00036778,7]
[422533481,1779040247000,-2505.7,0.00036788,10]
[422533483,1779040247000,-5906.9717436,0.00036788,2]
[422533485,1779040247000,-745.04616388,0.00036791,2]
[422533381,1779040247000,-300.0,0.00036298,2]
[422533448,1779040247000,-5000.0,0.00036567,10]
[422533445,1779040247000,-150.0,0.00036516,7]
[422533479,1779040247000,-2505.7,0.00036783,10]
[422533443,1779040247000,-150.0,0.00036516,7]
[422533434,1779040247000,-2506.71,0.00036493,10]
[422533394,1779040247000,-300.0,0.00036298,2]
[422533392,1779040247000,-568.95771281,0.00036298,2]
[422533386,1779040247000,-309.96996065,0.00036298,2]
[422533401,1779040247000,-2536.22,0.00036317,10]
[422533415,1779040247000,-5000.0,0.00036389,2]
[422533403,1779040247000,-5000.0,0.00036334,10]
[422533405,1779040247000,-5000.0,0.00036336,10]
[422533417,1779040247000,-5000.0,0.00036389,2]
[422533411,1779040247000,-5000.0,0.00036389,2]
[422533399,1779040247000,-150.0,0.00036315,7]
[422533407,1779040247000,-2536.23,0.00036379,10]
[422533419,1779040247000,-2511.84,0.00036397,10]
[422533432,1779040247000,-5000.0,0.00036489,10]
[422533430,1779040247000,-5000.0,0.00036467,10]
[422533426,1779040247000,-25000.0,0.00036449,10]
[422533428,1779040247000,-280.301538,0.0003645,32]
[422533424,1779040247000,-150.0,0.00036408,7]
[422533421,1779040247000,-60969.0,0.000364,30]
[422533409,1779040247000,-6598.12339915,0.00036389,2]
[422533413,1779040247000,-5000.0,0.00036389,2]
[422533441,1779040247000,-150.0,0.00036501,7]
[422533609,1779040248000,-150.0,0.00036938,7]
[422533629,1779040248000,-529.08690105,0.00037034,2]
[422533611,1779040248000,-150.0,0.00036938,7]
[422533605,1779040248000,-5000.0,0.00036891,10]
[422533616,1779040248000,-150.0,0.00036964,7]
[422533626,1779040248000,-181.215,0.00037,2]
[422533614,1779040248000,-25000.0,0.00036956,10]
[422533620,1779040248000,-5000.0,0.00036997,10]
[422533635,1779040248000,-165.55,0.0003717,60]
[422533622,1779040248000,-323.32,0.00037,15]
[422533624,1779040248000,-150.0,0.00037,2]
[422533633,1779040248000,-150.0,0.00037149,7]
[422533637,1779040248000,-2320.6612,0.00037179,2]
[422533607,1779040248000,-5000.0,0.00036904,10]
[422533639,1779040248000,-2140.6441,0.00037179,2]
[422533631,1779040248000,-150.0,0.00037056,7]
[422533603,1779040248000,-3703.48,0.00036891,10]
[422533588,1779040248000,-150.0,0.00036848,7]
[422533599,1779040248000,-150.0,0.00036871,7]
[422533642,1779040248000,-2234.841,0.00037179,2]
[422533548,1779040248000,-1977.3,0.00036798,2]
[422533566,1779040248000,-150.0,0.00015385,2]
[422533568,1779040248000,-31275.40223384,0.00015871,2]
[422533570,1779040248000,-761.0,0.00027281,10]
[422533574,1779040248000,-164.84,0.0002863,2]
[422533582,1779040248000,-12449.18577503,0.00036798,2]
[422533601,1779040248000,-25000.0,0.00036886,10]
[422533580,1779040248000,-1095.24427681,0.00036298,2]
[422533576,1779040248000,-300.0,0.00036298,2]
[422533586,1779040248000,-5000.0,0.00036832,10]
[422533590,1779040248000,-150.0,0.00036848,7]
[422533572,1779040248000,-170.39,0.0002863,2]
[422533592,1779040248000,-150.0,0.00036848,7]
[422533594,1779040248000,-200.0,0.00036858,2]
[422533596,1779040248000,-3655.42,0.00036859,10]
[422533584,1779040248000,-179.65,0.000368,7]
[422533652,1779040248000,-179.65,0.000372,7]
[422533618,1779040248000,-5000.0,0.00036985,10]
[422533656,1779040248000,-4554.81349114,0.00037201,2]
[422533692,1779040248000,-150.0,0.00037512,7]
[422533694,1779040248000,-150.0,0.0003752,7]
[422533696,1779040248000,-350.0,0.00037557,11]
[422533704,1779040248000,-60969.0,0.000376,30]
[422533706,1779040248000,-150.0,0.00037612,7]
[422533698,1779040248000,-500.0,0.00037565,30]
[422533700,1779040248000,-500.0,0.00037565,30]
[422533690,1779040248000,-150.0,0.00037512,7]
[422533708,1779040248000,-1000.0,0.00037615,2]
[422533711,1779040248000,-1506.50712886,0.00037615,2]
[422533715,1779040248000,-350.0,0.0003764,11]
[422533720,1779040248000,-150.0,0.00037663,7]
[422533717,1779040248000,-165.55,0.0003766,82]
[422533722,1779040248000,-150.0,0.00037663,7]
[422533724,1779040248000,-150.0,0.00037694,2]
[422533654,1779040248000,-216.18,0.000372,60]
[422533702,1779040248000,-333.27,0.00037565,30]
[422533688,1779040248000,-864.73,0.000375,120]
[422533713,1779040248000,-2140.6441,0.00037632,2]
[422533674,1779040248000,-240.0,0.00037328,2]
[422533646,1779040248000,-150.0,0.0003718,7]
[422533686,1779040248000,-580.36,0.000375,120]
[422533658,1779040248000,-200.0,0.00037227,2]
[422533650,1779040248000,-200.0,0.00037199,120]
[422533644,1779040248000,-150.0,0.0003718,7]
[422533663,1779040248000,-160.26,0.000373,30]
[422533661,1779040248000,-150.0,0.00037242,7]
[422533665,1779040248000,-150.0,0.00037301,7]
[422533648,1779040248000,-168.0,0.00037199,120]
[422533676,1779040248000,-150.0,0.00037334,7]
[422533670,1779040248000,-285.0,0.00037328,2]
[422533678,1779040248000,-150.0,0.00037427,7]
[422533680,1779040248000,-198.07120557,0.00037443,60]
[422533682,1779040248000,-150.0,0.00037445,30]
[422533684,1779040248000,-150.0,0.00037445,7]
[422533667,1779040248000,-150.0,0.00037301,7]
[422533672,1779040248000,-150.0,0.00037328,2]
[422533797,1779040249000,-260.279999,0.000378,38]
[422533785,1779040249000,-500.0,0.00037797,2]
[422533777,1779040249000,-500.0,0.00037797,2]
[422533783,1779040249000,-500.0,0.00037797,2]
[422533781,1779040249000,-500.0,0.00037797,2]
[422533795,1779040249000,-150.0,0.00037798,7]
[422533791,1779040249000,-500.0,0.00037797,2]
[422533799,1779040249000,-160.26,0.000378,30]
[422533793,1779040249000,-583.82,0.00037797,2]
[422533775,1779040249000,-500.0,0.00037797,2]
[422533801,1779040249000,-502.61340105,0.00037808,60]
[422533810,1779040249000,-150.0,0.00037844,7]
[422533819,1779040249000,-300.0,0.00037899,10]
[422533824,1779040249000,-168.93,0.00037911,5]
[422533815,1779040249000,-150.0,0.0003789,7]
[422533817,1779040249000,-210.0,0.00037899,120]
[422533804,1779040249000,-266.11929059,0.00037808,60]
[422533806,1779040249000,-350.0,0.00037808,90]
[422533822,1779040249000,-25967.30969384,0.000379,5]
[422533808,1779040249000,-150.0,0.00037844,7]
[422533828,1779040249000,-150.0,0.00037983,7]
[422533830,1779040249000,-152.0,0.00038,120]
[422533779,1779040249000,-500.0,0.00037797,2]
[422533812,1779040249000,-150.0,0.00037844,7]
[422533789,1779040249000,-500.0,0.00037797,2]
[422533743,1779040249000,-500.0,0.00037797,2]
[422533787,1779040249000,-500.0,0.00037797,2]
[422533732,1779040249000,-500.0,0.00037797,2]
[422533736,1779040249000,-500.0,0.00037797,2]
[422533734,1779040249000,-500.0,0.00037797,2]
[422533728,1779040249000,-500.0,0.00037797,2]
[422533738,1779040249000,-500.0,0.00037797,2]
[422533730,1779040249000,-500.0,0.00037797,2]
[422533740,1779040249000,-500.0,0.00037797,2]
[422533726,1779040249000,-150.0,0.00037705,7]
[422533747,1779040249000,-500.0,0.00037797,2]
[422533745,1779040249000,-500.0,0.00037797,2]
[422533749,1779040249000,-500.0,0.00037797,2]
[422533832,1779040249000,-200.0,0.00038,15]
[422533759,1779040249000,-500.0,0.00037797,2]
[422533761,1779040249000,-500.0,0.00037797,2]
[422533765,1779040249000,-500.0,0.00037797,2]
[422533771,1779040249000,-500.0,0.00037797,2]
[422533755,1779040249000,-500.0,0.00037797,2]
[422533767,1779040249000,-500.0,0.00037797,2]
[422533751,1779040249000,-500.0,0.00037797,2]
[422533753,1779040249000,-500.0,0.00037797,2]
[422533757,1779040249000,-500.0,0.00037797,2]
[422533769,1779040249000,-500.0,0.00037797,2]
[422533773,1779040249000,-500.0,0.00037797,2]
[422533786,1779040249000,-500.0,0.00037797,2]
[422533763,1779040249000,-500.0,0.00037797,2]
[422533834,1779040249000,-152.0,0.00038,2]
[422533908,1779040249000,-200.0,0.00038101,2]
[422533844,1779040249000,-150.0,0.00038025,7]
[422533912,1779040249000,-200.0,0.00038101,2]
[422533910,1779040249000,-200.0,0.00038101,2]
[422533914,1779040249000,-200.0,0.00038101,2]
[422533941,1779040249000,-200.0,0.00038101,2]
[422533934,1779040249000,-200.0,0.00038101,2]
[422533922,1779040249000,-200.0,0.00038101,2]
[422533925,1779040249000,-200.0,0.00038101,2]
[422533939,1779040249000,-200.0,0.00038101,2]
[422533920,1779040249000,-200.0,0.00038101,2]
[422533931,1779040249000,-200.0,0.00038101,2]
[422533929,1779040249000,-200.0,0.00038101,2]
[422533918,1779040249000,-200.0,0.00038101,2]
[422533936,1779040249000,-200.0,0.00038101,2]
[422533944,1779040249000,-200.0,0.00038101,2]
[422533956,1779040249000,-200.0,0.00038101,2]
[422533946,1779040249000,-200.0,0.00038101,2]
[422533958,1779040249000,-200.0,0.00038101,2]
[422533961,1779040249000,-200.0,0.00038101,2]
[422533953,1779040249000,-200.0,0.00038101,2]
[422533949,1779040249000,-200.0,0.00038101,2]
[422533963,1779040249000,-200.0,0.00038101,2]
[422533965,1779040249000,-200.0,0.00038101,2]
[422533951,1779040249000,-200.0,0.00038101,2]
[422533967,1779040249000,-200.0,0.00038101,2]
[422533927,1779040249000,-200.0,0.00038101,2]
[422533916,1779040249000,-200.0,0.00038101,2]
[422533826,1779040249000,-267.935294,0.0003795,39]
[422533903,1779040249000,-200.0,0.00038101,2]
[422533901,1779040249000,-200.0,0.00038101,2]
[422533836,1779040249000,-153.0,0.00038,120]
[422533842,1779040249000,-150.0,0.00038025,7]
[422533848,1779040249000,-2320.6613,0.00038086,2]
[422533840,1779040249000,-278.89344322,0.00038001,2]
[422533838,1779040249000,-263.0,0.00038,120]
[422533846,1779040249000,-150.0,0.00038075,7]
[422533855,1779040249000,-9607.43100594,0.000381,33]
[422533853,1779040249000,-2234.8411,0.00038086,2]
[422533857,1779040249000,-200.0,0.00038101,2]
[422533859,1779040249000,-200.0,0.00038101,2]
[422533861,1779040249000,-200.0,0.00038101,2]
[422533850,1779040249000,-2140.6443,0.00038086,2]
[422533885,1779040249000,-157.0,0.00038101,2]
[422533887,1779040249000,-200.0,0.00038101,2]
[422533876,1779040249000,-200.0,0.00038101,2]
[422533890,1779040249000,-200.0,0.00038101,2]
[422533899,1779040249000,-200.0,0.00038101,2]
[422533878,1779040249000,-200.0,0.00038101,2]
[422533880,1779040249000,-200.0,0.00038101,2]
[422533892,1779040249000,-200.0,0.00038101,2]
[422533894,1779040249000,-200.0,0.00038101,2]
[422533896,1779040249000,-200.0,0.00038101,2]
[422533905,1779040249000,-200.0,0.00038101,2]
[422533882,1779040249000,-200.0,0.00038101,2]
[422534062,1779040250000,-745.04616387,0.00038346,2]
[422534059,1779040250000,-2265.5,0.00038329,120]
[422534051,1779040250000,-2385.0,0.00038329,120]
[422534049,1779040250000,-309.34,0.00038317,2]
[422534036,1779040250000,-300.0,0.00038317,2]
[422534045,1779040250000,-300.0,0.00038317,2]
[422534042,1779040250000,-300.0,0.00038317,2]
[422534040,1779040250000,-300.0,0.00038317,2]
[422534031,1779040250000,-500.0,0.00038313,120]
[422534055,1779040250000,-2383.5,0.00038329,120]
[422534047,1779040250000,-300.0,0.00038317,2]
[422534053,1779040250000,-2385.0,0.00038329,120]
[422534082,1779040250000,-500.0,0.00038356,2]
[422534057,1779040250000,-2383.5,0.00038329,120]
[422534066,1779040250000,-500.0,0.00038356,2]
[422534064,1779040250000,-500.0,0.00038356,120]
[422534063,1779040250000,-150.0,0.00038353,7]
[422534065,1779040250000,-500.0,0.00038356,2]
[422534067,1779040250000,-500.0,0.00038356,2]
[422534070,1779040250000,-500.0,0.00038356,2]
[422534077,1779040250000,-500.0,0.00038356,2]
[422534068,1779040250000,-500.0,0.00038356,2]
[422534074,1779040250000,-500.0,0.00038356,2]
[422534072,1779040250000,-500.0,0.00038356,2]
[422534033,1779040250000,-941.8998432,0.00038313,120]
[422534080,1779040250000,-500.0,0.00038356,2]
[422534061,1779040250000,-2265.5,0.00038329,120]
[422534038,1779040250000,-300.0,0.00038317,2]
[422534002,1779040250000,-4790.99295835,0.000382,30]
[422534025,1779040250000,-500.0,0.00038313,120]
[422533969,1779040250000,-336.0,0.00038101,2]
[422533973,1779040250000,-151.0,0.00038125,30]
[422534076,1779040250000,-500.0,0.00038356,2]
[422533988,1779040250000,-280.301538,0.000382,40]
[422533982,1779040250000,-150.0,0.00038176,7]
[422533978,1779040250000,-150.0,0.00038168,7]
[422533984,1779040250000,-200.0,0.00038199,120]
[422533976,1779040250000,-165.55,0.0003814,98]
[422533980,1779040250000,-150.0,0.00038176,7]
[422533986,1779040250000,-300.0,0.00038199,10]
[422533991,1779040250000,-780.64894198,0.000382,30]
[422533993,1779040250000,-780.64894196,0.000382,30]
[422534027,1779040250000,-500.0,0.00038313,120]
[422533995,1779040250000,-4790.99295837,0.000382,30]
[422534004,1779040250000,-2095.00834077,0.0003823,2]
[422533998,1779040250000,-780.64894196,0.000382,30]
[422534006,1779040250000,-150.0,0.00038242,30]
[422534008,1779040250000,-150.0,0.00038242,7]
[422534010,1779040250000,-150.0,0.00038261,7]
[422534012,1779040250000,-4001.4436199,0.00038269,120]
[422534017,1779040250000,-500.0,0.00038313,120]
[422534014,1779040250000,-354.0,0.00038305,14]
[422534019,1779040250000,-646.9001839,0.00038313,120]
[422534021,1779040250000,-228.7415417,0.00038313,120]
[422534023,1779040250000,-500.0,0.00038313,120]